fUST/lending_fUST_20251002
["ID","MTS","AMOUNT","RATE_DAILY","PERIOD"]
[388802638,1759365316806,625.14,0.00033424,60]
[388802639,1759365317058,625.14,0.00033424,60]
[388802640,1759365317358,625.14,0.00033424,60]
[388802641,1759365317597,625.14,0.00033424,60]
[388802642,1759365317843,625.14,0.00033424,60]
[388802643,1759365318021,500.0,0.00033424,60]
[388802644,1759365318079,625.28368524,0.00033424,60]
[388802645,1759365319074,500.0,0.00033424,60]
[388802646,1759365320558,480.0,0.00033424,60]
[388802647,1759365324689,460.0,0.00033424,60]
[388802648,1759365327418,480.0,0.00033424,60]
[388802649,1759365332542,500.0,0.00033424,60]
[388802650,1759365336481,480.0,0.00033424,60]
[388802651,1759365338074,480.0,0.00033424,60]
[388802652,1759365339430,480.0,0.00033424,60]
[388802653,1759365340162,766.62,0.00033424,60]
[388802654,1759365340426,766.62,0.00033424,60]
[388802655,1759365340668,766.62,0.00033424,60]
[388802656,1759365340998,766.62,0.00033424,60]
[388802657,1759365341200,766.62,0.00033424,60]
[388802658,1759365341353,500.0,0.00033424,60]
[388802659,1759365341457,766.62,0.00033424,60]
[388802660,1759365341724,766.62,0.00033424,60]
[388802661,1759365341955,766.62,0.00033424,60]
[388802662,1759365342214,766.62,0.00033424,60]
[388802663,1759365342812,500.0,0.00033424,60]
[388802664,1759365346344,766.62,0.00033424,60]
[388802665,1759365346622,766.62,0.00033424,60]
[388802666,1759365346866,766.62,0.00033424,60]
[388802667,1759365347142,766.62,0.00033424,60]
[388802668,1759365347381,766.62,0.00033424,60]
[388802669,1759365347678,766.62,0.00033424,60]
[388802670,1759365347945,766.62,0.00033424,60]
[388802671,1759365348526,766.62,0.00033424,60]
[388802672,1759365348797,766.62,0.00033424,60]
[388802673,1759365349055,766.62,0.00033424,60]
[388802674,1759365349310,766.62,0.00033424,60]
[388802675,1759365349555,766.62,0.00033424,60]
[388802676,1759365349778,766.62,0.00033424,60]
[388802677,1759365350006,766.62,0.00033424,60]
[388802678,1759365350245,766.64,0.00033424,60]
[388802682,1759365363987,480.0,0.00033424,60]
[388802683,1759365366604,500.0,0.00033424,60]
[388802684,1759365374546,500.0,0.00033424,60]
[388802685,1759365374821,500.0,0.00033424,60]
[388802686,1759365375057,271.77211923,0.00033424,60]
[388802687,1759365388439,500.0,0.00033424,60]
[388802688,1759365391487,442.5478334,0.00033424,60]
[388802689,1759365391518,500.0,0.00033424,60]
[388802690,1759365391734,425.62944686,0.00033424,60]
[388802691,1759365393189,480.0,0.00033424,60]
[388802692,1759365400008,500.0,0.00033424,60]
[388802693,1759365401856,500.0,0.00033424,60]
[388802694,1759365401956,500.0,0.00033424,60]
[388802695,1759365406374,500.0,0.00033424,60]
[388802696,1759365407025,500.0,0.00033424,60]
[388802697,1759365411139,500.0,0.00033424,60]
[388802698,1759365418151,500.0,0.00033424,60]
[388802699,1759365418886,235.27195105,0.00033424,120]
[388802700,1759365419566,500.0,0.00033424,60]
[388802701,1759365422822,480.0,0.00033424,60]
[388802702,1759365424811,500.0,0.00033424,60]
[388802703,1759365427665,500.0,0.00033424,60]
[388802704,1759365429308,380.0,0.00033424,60]
[388802705,1759365430780,500.0,0.00033424,60]
[388802706,1759365432899,1000.0,0.00033424,60]
[388802707,1759365433146,1000.0,0.00033424,60]
[388802708,1759365433390,1000.0,0.00033424,60]
[388802709,1759365433616,500.0,0.00033424,60]
[388802710,1759365433660,1000.0,0.00033424,60]
[388802711,1759365433861,500.0,0.00033424,60]
[388802712,1759365433908,1060.89896895,0.00033424,60]
[388802713,1759365434412,500.0,0.00033424,60]
[388802714,1759365453443,500.0,0.00033391,60]
[388802715,1759365505418,500.0,0.00033391,60]
[388802716,1759365505654,500.0,0.00033391,60]
[388802718,1759365536084,500.0,0.00033391,60]
[388802719,1759365536310,500.0,0.00033391,60]
[388802720,1759365536589,500.0,0.00033391,60]
[388802721,1759365536848,500.0,0.00033391,60]
[388802722,1759365537509,500.0,0.00033391,60]
[388802723,1759365537700,500.0,0.00033391,60]
[388802724,1759365537940,500.0,0.00033391,60]
[388802725,1759365538283,500.0,0.00033391,60]
[388802726,1759365538535,500.0,0.00033391,60]
[388802727,1759365538823,500.0,0.00033391,60]
[388802728,1759365539052,500.0,0.00033391,60]
[388802729,1759365539297,500.0,0.00033391,60]
[388802730,1759365539553,500.0,0.00033391,60]
[388802731,1759365539785,500.0,0.00033391,60]
[388802732,1759365540027,500.0,0.00033391,60]
[388802733,1759365540258,500.0,0.00033391,60]
[388802734,1759365540493,500.0,0.00033391,60]
[388802735,1759365540725,357.98870802,0.00033391,60]
[388802736,1759365545449,481.46208121,0.00033391,60]
[388802737,1759365547381,500.0,0.00033391,60]
[388802738,1759365555266,500.0,0.00033391,60]
[388802739,1759365555500,480.0,0.00033391,60]
[388802740,1759365570641,500.0,0.00033391,60]
[388802741,1759365570919,500.0,0.00033391,60]
[388802742,1759365571190,500.0,0.00033391,60]
[388802743,1759365571478,500.0,0.00033391,60]
[388802744,1759365571708,500.0,0.00033391,60]
[388802745,1759365571985,500.0,0.00033391,60]
[388802746,1759365572234,500.0,0.00033391,60]
[388802747,1759365572475,500.0,0.00033391,60]
[388802748,1759365572717,500.0,0.00033391,60]
[388802749,1759365572966,500.0,0.00033391,60]
[388802750,1759365573264,500.0,0.00033391,60]
[388802751,1759365573509,500.0,0.00033391,60]
[388802752,1759365573756,500.0,0.00033391,60]
[388802753,1759365573991,500.0,0.00033391,60]
[388802754,1759365574234,500.0,0.00033391,60]
[388802755,1759365574480,500.0,0.00033391,60]
[388802756,1759365574711,500.0,0.00033391,60]
[388802757,1759365574944,500.0,0.00033391,60]
[388802758,1759365575181,500.0,0.00033391,60]
[388802759,1759365575446,500.0,0.00033391,60]
[388802760,1759365575679,500.0,0.00033391,60]
[388802761,1759365575920,500.0,0.00033391,60]
[388802762,1759365576176,349.48885219,0.00033391,60]
[388802763,1759365599105,482.1378436,0.00033391,60]
[388802764,1759365603462,500.0,0.00033391,60]
[388802765,1759365603714,282.9705953,0.00033391,60]
[388802766,1759365639600,500.0,0.00033391,60]
[388802767,1759365648758,500.0,0.00033391,60]
[388802768,1759365648980,460.0,0.00033391,60]
[388802769,1759365657948,500.0,0.00033391,60]
[388802770,1759365661499,500.0,0.00033391,60]
[388802771,1759365661738,500.0,0.00033391,60]
[388802772,1759365661924,500.0,0.00033391,60]
[388802773,1759365663081,460.0,0.00033391,60]
[388802774,1759365663974,500.0,0.00033391,60]
[388802776,1759365698012,500.0,0.00033391,60]
[388802777,1759365698245,389.87916032,0.00033391,60]
[388802778,1759365717811,480.0,0.00033391,60]
[388802779,1759365731911,500.0,0.00033391,60]
[388802780,1759365733733,500.0,0.00033391,60]
[388802781,1759365876969,500.0,0.00033391,60]
[388802782,1759365888449,480.0,0.00033391,60]
[388802783,1759365903519,480.0,0.00033391,60]
[388802784,1759365907486,500.0,0.00033391,60]
[388802785,1759365931046,500.0,0.00033391,60]
[388802786,1759365948933,480.0,0.00033391,60]
[388802788,1759366044415,480.0,0.00033391,60]
[388802789,1759366107093,500.0,0.00033391,60]
[388802820,1759366232159,-728.47590747,0.00019178,2]
[388802822,1759366232170,-300.0,0.00019552,2]
[388802824,1759366232181,-91.15840826,0.00019552,2]
[388802838,1759366232305,-208.84159174,0.00019552,2]
[388802840,1759366232316,-97.24732636,0.00019778,2]
[388802843,1759366232329,-466.53666222,0.00019778,2]
[388802857,1759366232419,-1297.51996989,0.00019778,2]
[388802858,1759366232428,-300.0,0.00019839,2]
[388802859,1759366232438,-1200.0,0.00019839,2]
[388802860,1759366232447,-500.0,0.0001984,2]
[388802861,1759366232456,-500.0,0.0001984,2]
[388802862,1759366232466,-501.15189891,0.0001984,2]
[388802863,1759366232475,-500.0,0.0001984,2]
[388802864,1759366232485,-500.0,0.0001984,2]
[388802865,1759366232495,-3596.94834967,0.0001984,2]
[388802871,1759366237955,-7812.33177416,0.0001984,2]
[388802872,1759366237967,-501.47345628,0.00019967,2]
[388802873,1759366237978,-154.49186054,0.00019967,2]
[388802874,1759366237988,-500.0,0.000201,2]
[388802875,1759366238177,-276.69361139,0.000201,2]
[388802876,1759366238198,-500.0,0.00020183,2]
[388802877,1759366238209,-500.0,0.0002032,2]
[388802878,1759366238219,-293.36416222,0.00020322,2]
[388802879,1759366238229,-160.0,0.00020322,2]
[388802880,1759366238239,-233.9640895,0.00020322,2]
[388802881,1759366238249,-160.0,0.00020322,2]
[388802882,1759366238259,-160.0,0.00020322,2]
[388802883,1759366238270,-517.07436645,0.00020388,2]
[388802884,1759366238279,-796.90833631,0.00020388,2]
[388802885,1759366238289,-1000.0,0.00020388,2]
[388802886,1759366238298,-407.23780233,0.00020868,2]
[388802887,1759366238307,-500.0,0.00020967,2]
[388802888,1759366238317,-500.0,0.00020967,2]
[388802889,1759366238326,-500.0,0.00021515,2]
[388802890,1759366238336,-178.0,0.00021589,5]
[388802891,1759366238345,-420.0,0.00021606,2]
[388802892,1759366238355,-764.0747694,0.00022481,2]
[388802893,1759366238366,-979.0,0.00022581,2]
[388802894,1759366238375,-495.59767223,0.00022581,2]
[388802895,1759366238388,-1660.40232777,0.00022581,2]
[388802896,1759366238398,-630.0,0.00022581,2]
[388802897,1759366238407,-410.0,0.00022581,2]
[388802898,1759366238417,-428.711,0.00022581,2]
[388802899,1759366238427,-419.397,0.00022739,2]
[388802900,1759366238437,-168.0,0.00022822,2]
[388802901,1759366238446,-168.0,0.00022914,2]
[388802902,1759366238456,-160.0,0.00022917,2]
[388802903,1759366238467,-168.0,0.0002295,2]
[388802904,1759366238478,-5000.0,0.00023028,2]
[388802905,1759366238487,-168.0,0.00023394,2]
[388802906,1759366238498,-260.0,0.00023465,2]
[388802907,1759366238508,-168.0,0.00023516,2]
[388802908,1759366238518,-587.0,0.0002353,2]
[388802909,1759366238528,-168.0,0.00023572,2]
[388802910,1759366238537,-168.0,0.00023743,2]
[388802911,1759366238547,-151.0,0.00023743,2]
[388802912,1759366238557,-820.02911003,0.00023764,2]
[388802913,1759366238567,-155.447436,0.00023781,2]
[388802914,1759366238576,-168.0,0.00023997,2]
[388802915,1759366238585,-360.0,0.00024013,2]
[388802916,1759366238594,-198.0,0.00024017,2]
[388802917,1759366238604,-764.07476933,0.00024025,2]
[388802918,1759366238614,-168.0,0.00024082,2]
[388802919,1759366238623,-450.49383097,0.00024109,2]
[388802920,1759366238633,-177.80116549,0.00024242,2]
[388802921,1759366238644,-710.4934573,0.00024242,2]
[388802922,1759366238654,-168.0,0.00024269,2]
[388802923,1759366238664,-360.05808585,0.00024296,2]
[388802924,1759366238674,-500.0,0.00024296,2]
[388802925,1759366238684,-500.0,0.00024296,2]
[388802926,1759366238695,-500.0,0.00024296,2]
[388802927,1759366238705,-500.0,0.00024296,2]
[388802928,1759366238715,-500.0,0.00024296,2]
[388802929,1759366238726,-500.0,0.00024296,2]
[388802930,1759366238737,-500.0,0.00024296,2]
[388802931,1759366238747,-500.0,0.00024296,2]
[388802932,1759366238757,-500.0,0.00024296,2]
[388802933,1759366238767,-500.0,0.00024296,2]
[388802934,1759366238776,-500.0,0.00024296,2]
[388802935,1759366238786,-500.0,0.00024296,2]
[388802936,1759366238795,-500.0,0.00024296,2]
[388802937,1759366238804,-500.0,0.00024296,2]
[388802938,1759366238814,-500.0,0.00024296,2]
[388802939,1759366238824,-500.0,0.00024296,2]
[388802940,1759366238834,-500.0,0.00024296,2]
[388802941,1759366238844,-500.0,0.00024296,2]
[388802942,1759366238854,-500.0,0.00024296,2]
[388802943,1759366238864,-500.0,0.00024296,2]
[388802944,1759366238874,-500.0,0.00024296,2]
[388802945,1759366238883,-500.0,0.00024296,2]
[388802946,1759366238893,-500.0,0.00024296,2]
[388802947,1759366238903,-500.0,0.00024296,2]
[388802948,1759366238913,-500.0,0.00024296,2]
[388802949,1759366238923,-500.0,0.00024296,2]
[388802950,1759366238935,-500.0,0.00024296,2]
[388802951,1759366238945,-452.7264388,0.00024296,2]
[388802952,1759366238954,-500.0,0.00024296,2]
[388802953,1759366238964,-500.0,0.00024296,2]
[388802954,1759366238975,-500.0,0.00024296,2]
[388802955,1759366238984,-500.0,0.00024296,2]
[388802956,1759366238993,-1157.05743149,0.00024297,2]
[388802957,1759366239003,-461.0,0.000243,2]
[388802958,1759366239014,-162.0,0.00024329,12]
[388802959,1759366239023,-12724.25,0.0002439,10]
[388802960,1759366239032,-10603.54,0.0002439,10]
[388802961,1759366239042,-8836.28,0.0002439,10]
[388802962,1759366239051,-181.83027662,0.00024399,2]
[388802963,1759366239060,-2000.0,0.000244,2]
[388802964,1759366239069,-2000.0,0.000244,2]
[388802965,1759366239078,-8040.36707527,0.000244,2]
[388802966,1759366239091,-1205.24441864,0.000244,2]
[388802967,1759366239102,-8848.154171,0.000244,2]
[388802968,1759366239113,-1116.45259264,0.000244,2]
[388802969,1759366239124,-278.31470361,0.000244,2]
[388803016,1759366243348,-2212.1806549,0.000244,2]
[388803017,1759366243360,-2605.232971,0.000244,2]
[388803018,1759366243373,-68805.85454236,0.000244,2]
[388803019,1759366243382,-2531.6006367,0.00024451,2]
[388803020,1759366243392,-11889.0107467,0.00024451,2]
[388803021,1759366243402,-3244.7158627,0.00024451,2]
[388803022,1759366243412,-160.0,0.0002448,10]
[388803023,1759366243422,-155.447436,0.00024485,7]
[388803024,1759366243431,-293.36416222,0.0002449,10]
[388803025,1759366243441,-233.9640895,0.0002449,10]
[388803027,1759366243450,-1147.2190504,0.000245,27]
[388803028,1759366243461,-267.32523168,0.000245,27]
[388803048,1759366246166,-1846.20467565,0.000245,27]
[388803051,1759366246178,-624.99999991,0.000245,27]
[388803056,1759366246272,-487.07416272,0.000245,27]
[388803065,1759366375935,161.0,0.000287,120]
[388803066,1759366377046,161.0,0.000287,120]
[388803068,1759366438476,3017.62,0.00028767,120]
[388803070,1759366556729,500.0,0.00033387,60]
[388803071,1759366595228,500.0,0.00033387,60]
[388803072,1759366657629,500.0,0.00033384,60]
[388803073,1759366674535,500.0,0.00033384,60]
[388803075,1759366703354,537.8,0.00033384,60]
[388803076,1759366706829,500.0,0.00033384,60]
[388803082,1759366844776,500.0,0.00033384,60]
[388803083,1759366846151,500.0,0.00033384,60]
[388803085,1759366849678,320.0,0.00033384,60]
[388803086,1759366926839,1837.82,0.0002876,120]
[388803090,1759367231120,-160.5672609,0.00020453,2]
[388803091,1759367231140,-300.0,0.0002066,2]
[388803092,1759367231158,-153.0,0.0002066,2]
[388803093,1759367231179,-545.57422728,0.0002066,2]
[388803183,1759367438380,-2613.04299733,0.0002066,2]
[388803198,1759367441158,-15633.92479091,0.0002066,2]
[388803235,1759368433083,-1166.69590585,0.00019646,2]
[388803244,1759368605896,203.97714668,0.00018878,2]
[388803270,1759368632701,-302.8183302,0.000189,2]
[388803272,1759368632710,-500.0,0.000197,2]
[388803274,1759368632720,-439.0850895,0.00019746,2]
[388803276,1759368632729,-160.0,0.00020664,2]
[388803278,1759368632738,-160.0,0.00020664,2]
[388803280,1759368632747,-150.0,0.0002076,2]
[388803282,1759368632756,-300.0,0.00020803,2]
[388803284,1759368632765,-674.0,0.00020803,2]
[388803286,1759368632774,-500.0,0.00020804,2]
[388803288,1759368632783,-500.0,0.00020804,2]
[388803290,1759368632792,-500.0,0.00020804,2]
[388803292,1759368632801,-500.0,0.00020804,2]
[388803293,1759368632809,-500.0,0.00020804,2]
[388803295,1759368632819,-360.39258973,0.00020804,2]
[388803297,1759368632828,-595.27264388,0.00020804,2]
[388803299,1759368632837,-50000.0,0.00020805,2]
[388803300,1759368632847,-500.0,0.00020873,2]
[388803301,1759368632856,-3402.748266,0.00021,2]
[388803302,1759368632865,-600.0,0.0002122,20]
[388803303,1759368632874,-150.0,0.0002126,2]
[388803304,1759368632883,-500.0,0.00021471,2]
[388803305,1759368632892,-495.9798274,0.00021471,2]
[388803306,1759368632901,-500.0,0.00021475,2]
[388803307,1759368632915,-500.0,0.00021475,2]
[388803309,1759368632924,-500.0,0.00021475,2]
[388803311,1759368632934,-515.44731428,0.00021511,2]
[388803312,1759368632943,-164.0,0.00021562,5]
[388803313,1759368632953,-506.33177552,0.00021587,2]
[388803314,1759368632964,-500.0,0.00021587,2]
[388803315,1759368632973,-505.61877837,0.00021587,2]
[388803316,1759368632982,-503.20068543,0.00021587,2]
[388803317,1759368632991,-536.02862036,0.00021587,2]
[388803318,1759368633000,-420.63279281,0.00021587,2]
[388803319,1759368633009,-500.0,0.00021589,2]
[388803320,1759368633019,-500.0,0.00021675,2]
[388803321,1759368633028,-500.0,0.00021686,2]
[388803322,1759368633037,-500.0,0.00021686,2]
[388803323,1759368633047,-500.0,0.000217,2]
[388803324,1759368633056,-150.0,0.0002176,2]
[388803325,1759368633065,-496.02337041,0.00021767,2]
[388803326,1759368633074,-178.2684504,0.00022023,2]
[388803327,1759368633084,-500.0,0.00022023,2]
[388803328,1759368633093,-293.36416222,0.00022056,2]
[388803329,1759368633102,-233.9640895,0.00022111,2]
[388803330,1759368633111,-160.0,0.00022111,2]
[388803331,1759368633120,-150.0,0.0002226,2]
[388803332,1759368633129,-979.0,0.00022346,2]
[388803333,1759368633138,-2156.0,0.00022346,2]
[388803334,1759368633147,-630.0,0.00022346,2]
[388803335,1759368633157,-500.0,0.00022525,2]
[388803336,1759368633167,-150.0,0.00022581,2]
[388803337,1759368633176,-420.0,0.00022633,2]
[388803338,1759368633185,-150.0,0.0002276,2]
[388803339,1759368633194,-500.0,0.00022799,2]
[388803340,1759368633203,-160.0,0.00023,2]
[388803341,1759368633212,-509.2069722,0.00023073,2]
[388803342,1759368633221,-152.30654093,0.00023106,2]
[388803343,1759368633231,-153.43774721,0.00023106,2]
[388803344,1759368633240,-500.0,0.00023106,2]
[388803345,1759368633249,-325.18815413,0.00023106,2]
[388803346,1759368633258,-200.0,0.00023106,2]
[388803347,1759368633267,-523.60985556,0.00023106,2]
[388803348,1759368633277,-250.0,0.00023123,2]
[388803349,1759368633286,-150.0,0.0002326,2]
[388803350,1759368633295,-720.0,0.00023342,20]
[388803351,1759368633304,-335.518,0.0002352,4]
[388803352,1759368633314,-150.0,0.0002376,2]
[388803353,1759368633323,-615.02183253,0.00023764,2]
[388803354,1759368633332,-293.36416222,0.0002398,10]
[388803355,1759368633341,-7363.57,0.0002398,10]
[388803356,1759368633351,-6147.36,0.0002398,10]
[388803357,1759368633359,-5122.8,0.0002398,10]
[388803358,1759368633369,-14891.8741277,0.0002399,2]
[388803359,1759368633380,-28225.72066724,0.0002399,2]
[388803360,1759368633390,-151.0,0.00024,7]
[388803361,1759368633399,-220.013904,0.00024,7]
[388803362,1759368633408,-220.013904,0.00024,7]
[388803363,1759368633417,-220.013904,0.00024,7]
[388803364,1759368633426,-220.013904,0.00024,7]
[388803365,1759368633435,-8084.553638,0.00024,7]
[388803366,1759368633444,-151.0,0.00024,7]
[388803367,1759368633453,-151.0,0.00024,7]
[388803368,1759368633462,-8084.553638,0.00024,7]
[388803369,1759368633471,-151.0,0.00024,7]
[388803370,1759368633481,-8084.553638,0.00024,7]
[388803371,1759368633490,-151.0,0.00024,7]
[388803372,1759368633499,-8084.553638,0.00024,7]
[388803373,1759368633508,-151.0,0.00024,7]
[388803374,1759368633518,-151.0,0.00024,7]
[388803375,1759368633527,-151.0,0.00024,7]
[388803376,1759368633536,-233.9640895,0.00024,10]
[388803377,1759368633546,-160.93469155,0.00024017,2]
[388803378,1759368633558,-151.0,0.00024017,2]
[388803379,1759368633568,-151.0,0.00024017,2]
[388803380,1759368633577,-151.0,0.00024017,2]
[388803381,1759368633586,-151.0,0.00024017,2]
[388803382,1759368633596,-151.0,0.00024017,2]
[388803383,1759368633605,-151.0,0.00024017,2]
[388803384,1759368633614,-151.0,0.00024017,2]
[388803385,1759368633624,-151.0,0.00024017,2]
[388803386,1759368633633,-151.0,0.00024017,2]
[388803387,1759368633642,-151.0,0.00024017,2]
[388803388,1759368633651,-500.0,0.00024017,2]
[388803389,1759368633659,-198.91630416,0.00024017,2]
[388803390,1759368633669,-151.0,0.00024017,2]
[388803391,1759368633677,-151.0,0.00024017,2]
[388803392,1759368633686,-151.0,0.00024017,2]
[388803393,1759368633695,-160.0,0.00024038,2]
[388803394,1759368633704,-2200.0,0.00024158,2]
[388803395,1759368633713,-168.0,0.0002418,2]
[388803396,1759368633722,-150.0,0.0002426,2]
[388803397,1759368633731,-198.0,0.00024291,2]
[388803398,1759368633739,-151.0,0.00024291,2]
[388803399,1759368633749,-151.0,0.00024291,2]
[388803400,1759368633758,-151.0,0.00024291,2]
[388803401,1759368633766,-500.0,0.00024291,2]
[388803402,1759368633775,-151.0,0.00024291,2]
[388803403,1759368633784,-151.0,0.00024291,2]
[388803404,1759368633793,-151.0,0.00024291,2]
[388803405,1759368633801,-1853.82524627,0.000243,2]
[388803406,1759368633811,-500.0,0.00024373,2]
[388803407,1759368633820,-2000.0,0.000244,2]
[388803408,1759368633829,-2000.0,0.000244,2]
[388803409,1759368633838,-151.0,0.000244,7]
[388803410,1759368633847,-151.0,0.000244,7]
[388803411,1759368633857,-151.0,0.000244,7]
[388803412,1759368633866,-151.0,0.000244,7]
[388803413,1759368633875,-151.0,0.000244,7]
[388803414,1759368633884,-151.0,0.000244,7]
[388803415,1759368633893,-151.0,0.000244,7]
[388803416,1759368633902,-220.013904,0.000244,7]
[388803417,1759368633913,-220.013904,0.000244,7]
[388803418,1759368633922,-220.013904,0.000244,7]
[388803419,1759368633931,-220.013904,0.000244,7]
[388803420,1759368633940,-8084.553638,0.000244,7]
[388803421,1759368633952,-151.0,0.000244,7]
[388803422,1759368633962,-8084.553638,0.000244,7]
[388803423,1759368633971,-151.0,0.000244,7]
[388803424,1759368634109,-8084.553638,0.000244,7]
[388803425,1759368634119,-151.0,0.000244,7]
[388803426,1759368634129,-8084.553638,0.000244,7]
[388803427,1759368634138,-151.0,0.000244,7]
[388803428,1759368634147,-246.29962585,0.000244,7]
[388803429,1759368634157,-151.0,0.000244,7]
[388803430,1759368634167,-151.0,0.000244,7]
[388803431,1759368634176,-151.0,0.000244,7]
[388803432,1759368634185,-151.0,0.000244,7]
[388803433,1759368634195,-12471.86504795,0.000244,2]
[388803434,1759368634204,-299.500484,0.00024462,7]
[388803435,1759368634214,-299.500484,0.00024462,7]
[388803436,1759368634223,-151.0,0.00024462,7]
[388803437,1759368634232,-159.37536145,0.00024462,7]
[388803438,1759368634244,-140.12512255,0.00024462,7]
[388803439,1759368634253,-299.500484,0.00024462,7]
[388803440,1759368634262,-151.0,0.00024462,7]
[388803441,1759368634271,-151.0,0.00024462,7]
[388803442,1759368634280,-151.0,0.00024462,7]
[388803443,1759368634289,-500.0,0.00024473,2]
[388803444,1759368634299,-59.81214663,0.00024485,7]
[388803445,1759368634331,230.95907009,0.00033395,60]
[388803466,1759368638513,-95.63528937,0.00024485,7]
[388803468,1759368638523,-4269.0,0.0002449,10]
[388803469,1759368638533,-6965.08164017,0.000245,27]
[388803476,1759368638609,-1802.91630416,0.000245,27]
[388803508,1759368643937,-663.62072788,0.000245,27]
[388803511,1759368645719,446.85249498,0.00033395,60]
[388803526,1759368646905,-621.74251151,0.000245,27]
[388803527,1759368646919,-678.92998736,0.000245,27]
[388803532,1759368649860,257.59556102,0.00033395,60]
[388803538,1759368702283,300.46986617,0.00033395,60]
[388803540,1759368741291,298.32,0.00028767,120]
[388803541,1759368784567,240.49844247,0.00033386,60]
[388803542,1759368786321,326.1987952,0.00023288,30]
[388803543,1759368789310,290.87074347,0.00033386,60]
[388803544,1759368802615,166.05887033,0.00033386,60]
[388803546,1759368831775,609.09572684,0.00033386,60]
[388803547,1759368858972,279.24604111,0.00033386,60]
[388803549,1759368884684,200.0,0.00028,120]
[388803550,1759368899594,469.4,0.0002876,120]
[388803551,1759369091883,162.0,0.000287,120]
[388803553,1759369125290,161.0,0.000287,120]
[388803563,1759369349296,8125.9947429,0.00033402,120]
[388803568,1759369573724,505.6991818,0.00033403,60]
[388803569,1759369582340,508.57456559,0.00033403,60]
[388803570,1759369596348,506.09,0.00033403,60]
[388803571,1759369607976,510.30976248,0.00033403,60]
[388803572,1759369637048,502.51,0.00018878,2]
[388803577,1759369705926,1019.57986025,0.00033403,60]
[388803637,1759369831821,-310.67062539,0.00019178,2]
[388803639,1759369831833,-4689.32937461,0.00019178,2]
[388803641,1759369831843,-501.87223816,0.000192,2]
[388803642,1759369831852,-1372.98208724,0.00020927,2]
[388803644,1759369831861,-164.854626,0.00021562,5]
[388803645,1759369831871,-233.9640895,0.00021792,2]
[388803646,1759369831880,-160.0,0.00021792,2]
[388803648,1759369831889,-293.36416222,0.00021824,2]
[388803649,1759369831898,-157.583474,0.00022,4]
[388803650,1759369831907,-300.0,0.00022072,2]
[388803651,1759369831916,-569.53933342,0.00022073,2]
[388803652,1759369831926,-981.612,0.00022343,2]
[388803653,1759369831935,-630.0,0.00022343,2]
[388803654,1759369831945,-2157.0,0.00022343,2]
[388803655,1759369831955,-410.0,0.00022343,2]
[388803656,1759369831965,-429.668,0.00022343,2]